bitfinex/quotes_SOLUSD_20250529
["timestamp","ask_amount","ask_price","bid_price","bid_amount"]
[1748483968604,16.46429386,172.91,172.87,26.76429386]
[1748483969382,5.78368999,172.9,172.87,10.3]
[1748483969575,5.78368999,172.9,172.87,26.76429386]
[1748483970484,5.78368999,172.9,172.87,10.3]
[1748483971209,867.07127423,174.53,172.87,10.3]
[1748483971210,40.45394507,172.97,172.89,16.46429386]
[1748483971416,40.45394507,172.97,172.87,10.3]
[1748483971417,5.78268663,172.93,172.9,16.46429386]
[1748483972001,5.78268663,172.93,172.89,16.46429386]
[1748483972207,5.78268663,172.93,172.87,10.3]
[1748483972392,22.24698049,172.93,172.88,16.46429386]
[1748483973103,5.78268663,172.93,172.89,16.46429386]
[1748483976422,5.78268663,172.93,172.89,26.76429386]
[1748483976935,5.78268663,172.93,172.89,10.3]
[1748483977100,22.24698049,172.93,172.89,10.3]
[1748483978646,16.46429386,172.92,172.89,10.3]
[1748483980131,22.24698049,172.93,172.89,10.3]
[1748483983230,5.78268663,172.93,172.89,10.3]
[1748483983431,22.24698049,172.93,172.89,10.3]
[1748483986854,5.78268663,172.93,172.89,10.3]
[1748483987058,14.45556606,172.95,172.91,16.46429386]
[1748483987059,5.78232458,172.95,172.91,16.46429386]
[1748483987264,22.24661844,172.95,172.9,16.46429386]
[1748483987578,5.78232458,172.95,172.91,16.46429386]
[1748483991744,22.24661844,172.95,172.9,16.46429386]
[1748483994077,18.79181043,172.94,172.89,10.3]
[1748483994373,35.25610429,172.94,172.89,26.76429386]
[1748483996246,5.78268663,172.93,172.9,16.46429386]
[1748483999978,5.78268663,172.93,172.9,10.5871609]
[1748484001667,5.78240563,172.94,172.9,10.5871609]
[1748484001868,5.78240563,172.94,172.91,10.5871609]
[1748484002674,5.78168362,172.96,172.91,10.5871609]
[1748484002970,5.78168362,172.96,172.89,16.08401873]
[1748484002971,5.78168362,172.96,172.93,10.5871609]
[1748484003175,29.23680976,172.98,172.93,10.5871609]
[1748484003356,5.78141214,172.97,172.95,10.5871609]
[1748484003558,24.43077491,172.98,172.95,10.5871609]
[1748484003785,14.44966299,173.02,172.95,20.7471609]
[1748484003957,29.23680976,173.01,172.96,10.5871609]
[1748484004260,28.89458331,173.05,172.96,10.5871609]
[1748484004261,5.77734126,173.09,173.0,10.5871609]
[1748484004455,10.5871609,173.07,173.02,10.5871609]
[1748484004659,10.5871609,173.06,173.01,10.5871609]
[1748484004966,18.79181043,173.04,173.0,10.5871609]
[1748484005352,18.64964886,173.04,173.0,10.5871609]
[1748484005762,10.5871609,173.05,173.01,10.5871609]
[1748484005969,16.52170141,173.05,173.01,16.52170141]
[1748484006285,0.14216157,173.05,173.01,16.52170141]
[1748484006463,35.17135027,173.06,173.01,16.52170141]
[1748484006667,5.92116472,173.05,173.01,16.52170141]
[1748484006857,5.77900315,173.05,173.01,16.52170141]
[1748484007670,5.77900315,173.05,173.02,16.52170141]
[1748484009078,5.77900315,173.05,173.01,9.88]
[1748484009079,5.77821659,173.07,173.04,16.52170141]
[1748484012378,35.31351184,173.06,173.02,16.52170141]
[1748484012681,35.31351184,173.06,173.01,26.40170141]
[1748484012682,16.52170141,173.05,173.01,26.40170141]
[1748484012853,16.52170141,173.05,173.01,9.88]
[1748484013059,16.66386298,173.04,173.01,9.88]
[1748484013476,18.79181043,173.02,173.01,9.88]
[1748484014863,24.57148907,173.02,173.01,9.88]
[1748484016069,24.57083131,173.04,173.01,26.40170141]
[1748484016283,18.64964886,173.07,173.03,16.52170141]
[1748484016491,24.42765775,173.07,173.03,16.52170141]
[1748484017111,5.77800889,173.07,173.04,16.52170141]
[1748484017971,5.77800889,173.07,173.03,16.52170141]
[1748484018170,22.2997103,173.07,173.02,16.52170141]
[1748484022481,5.77800889,173.07,173.03,16.52170141]
[1748484023812,22.2997103,173.07,173.03,16.52170141]
[1748484026016,24.42743284,173.08,173.04,16.52170141]
[1748484026402,40.94913425,173.08,173.04,16.52170141]
[1748484030108,40.94913425,173.08,173.03,16.52170141]
[1748484030815,16.66386298,173.07,173.02,9.88]
[1748484030997,16.52170141,173.06,173.02,26.40170141]
[1748484031184,5.77867668,173.05,173.02,9.88]
[1748484031385,35.17135027,173.03,173.02,9.88]
[1748484031585,18.64964886,173.02,172.97,26.40170141]
[1748484031817,35.17135027,173.02,172.97,26.40170141]
[1748484031998,16.52170141,172.99,172.97,9.88]
[1748484032203,16.52170141,172.98,172.97,9.88]
[1748484032402,35.31351184,172.98,172.97,9.88]
[1748484033910,41.09452698,172.98,172.97,9.88]
[1748484034453,24.57282557,172.98,172.97,9.88]
[1748484035398,5.78101514,172.98,172.97,9.88]
[1748484036304,5.92284253,172.99,172.97,9.88]
[1748484036509,22.44454394,172.99,172.97,9.88]
[1748484037895,5.92284253,172.99,172.97,9.88]
[1748484038103,22.44454394,172.99,172.97,9.88]
[1748484040213,16.52170141,172.98,172.97,9.88]
[1748484040613,22.30271655,172.98,172.97,9.88]
[1748484046527,5.78101514,172.98,172.97,9.88]
[1748484050831,5.78076514,172.99,172.97,9.88]
[1748484051131,5.78076514,172.99,172.97,26.40170141]
[1748484051912,5.78001271,173.01,172.97,26.40170141]
[1748484052233,5.78001271,173.01,172.99,16.52170141]
[1748484052536,5.78001271,173.01,172.98,16.52170141]
[1748484054912,5.78001271,173.01,172.97,48.0867]
[1748484055221,5.78001271,173.01,172.98,16.52170141]
[1748484056019,5.78001271,173.01,172.97,48.0867]
[1748484056343,16.52170141,173.0,172.97,9.88]
[1748484058036,5.78068096,172.99,172.97,9.88]
[1748484058426,40.95169021,173.01,172.97,9.88]
[1748484060367,40.95169021,173.01,172.97,26.40170141]
[1748484062648,16.52170141,173.04,172.99,16.52170141]
[1748484062865,18.64964886,173.04,173.0,16.52170141]
[1748484063433,18.64964886,173.04,172.97,41.6611798]
[1748484063434,0.14216157,173.05,173.02,16.52170141]
[1748484063625,22.29979612,173.07,173.02,16.52170141]
[1748484064501,22.29979612,173.07,172.97,9.88]
[1748484064502,18.64964886,173.02,172.97,9.88]
[1748484064728,16.52170141,173.0,172.97,9.88]
[1748484067955,5.78068096,172.99,172.97,9.88]
[1748484069136,22.30238237,172.99,172.97,9.88]
[1748484072632,5.77901063,173.04,172.97,26.40170141]
[1748484072850,35.17135027,173.03,172.98,16.52170141]
[1748484073039,5.77901063,173.04,173.0,16.52170141]
[1748484073362,18.79181043,173.0,172.97,46.44]
[1748484073536,16.52170141,172.98,172.93,1.5046]
[1748484073738,16.52170141,172.97,172.94,9.86]
[1748484073938,16.52170141,172.98,172.94,9.86]
[1748484074464,16.52170141,172.99,172.94,26.38170141]
[1748484075745,5.78101514,172.98,172.94,26.38170141]
[1748484076471,22.44440408,173.0,172.96,16.52170141]
[1748484077179,22.30180713,173.01,172.96,16.52170141]
[1748484077973,16.52170141,173.0,172.96,16.52170141]
[1748484078478,16.52170141,173.0,172.95,16.52170141]
[1748484078767,16.52170141,172.98,172.94,26.38170141]
[1748484079438,16.52170141,172.98,172.94,9.86]
[1748484079636,5.78168362,172.96,172.94,9.86]
[1748484079835,22.30338503,172.96,172.94,9.86]
[1748484080655,5.78168362,172.96,172.94,9.86]
[1748484081140,5.78168362,172.96,172.94,9.917824]
[1748484083855,22.30338503,172.96,172.94,9.917824]
[1748484085564,5.78168362,172.96,172.94,9.917824]
[1748484086962,16.52170141,172.98,172.94,9.917824]
[1748484086963,5.78101514,172.98,172.94,9.917824]
[1748484087161,22.30271655,172.98,172.94,9.917824]
[1748484089589,5.78201792,172.95,172.94,9.917824]
[1748484091372,5.78172044,172.96,172.94,9.917824]
[1748484092863,0.14216157,172.97,172.94,9.917824]
[1748484093276,5.78101514,172.98,172.94,9.917824]
[1748484093484,22.30271655,172.98,172.94,9.917824]
[1748484095090,5.78101514,172.98,172.94,9.917824]
[1748484095291,22.30271655,172.98,172.94,9.917824]
[1748484096294,22.30271655,172.98,172.94,26.43952541]
[1748484096497,22.30271655,172.98,172.94,9.917824]
[1748484098175,22.30271655,172.98,172.94,26.43952541]
[1748484098493,5.78101514,172.98,172.95,16.52170141]
[1748484098672,16.52170141,172.99,172.95,16.52170141]
[1748484098873,16.52170141,172.99,172.94,26.43952541]
[1748484099683,5.78101514,172.98,172.94,26.43952541]
[1748484101000,22.30271655,172.98,172.94,9.917824]
[1748484101594,5.78101514,172.98,172.94,9.917824]
[1748484101795,22.30271655,172.98,172.94,9.917824]
[1748484102887,5.78101514,172.98,172.94,9.917824]
[1748484103086,5.78101514,172.98,172.94,26.43952541]
[1748484103693,5.78101514,172.98,172.94,9.917824]
[1748484103988,5.78101514,172.98,172.94,26.43952541]
[1748484104819,5.92286532,172.99,172.94,26.43952541]
[1748484105007,5.78070375,172.99,172.95,16.52170141]
[1748484105497,5.78042628,173.0,172.95,16.52170141]
[1748484106085,22.30212769,173.0,172.95,16.52170141]
[1748484106285,16.52170141,172.99,172.94,26.43952541]
[1748484106489,16.66386298,172.98,172.94,9.917824]
[1748484106975,0.14216157,172.98,172.94,9.917824]
[1748484107178,0.14216157,172.98,172.94,26.43952541]
[1748484107786,5.78134936,172.97,172.94,9.917824]
[1748484107986,5.78134936,172.97,172.94,26.43952541]
[1748484109203,22.30305077,172.97,172.94,9.917824]
[1748484109412,5.78134936,172.97,172.94,9.917824]
[1748484111512,5.92324809,172.98,172.94,9.917824]
[1748484111808,5.78108652,172.98,172.94,26.43952541]
[1748484112009,5.92250839,173.0,172.94,26.43952541]
[1748484112413,16.52170141,172.99,172.94,26.43952541]
[1748484113279,16.52170141,172.99,172.94,9.917824]
[1748484113478,16.52170141,172.99,172.94,26.43952541]
[1748484114518,5.92250839,173.0,172.94,26.43952541]
[1748484114689,16.52170141,172.99,172.94,26.43952541]
[1748484114890,22.4442098,173.0,172.95,16.52170141]
[1748484115703,5.78034682,173.0,172.96,16.52170141]
[1748484119203,16.66386298,173.01,172.96,16.52170141]
[1748484120001,5.78034682,173.0,172.96,16.52170141]
[1748484120712,22.30204823,173.0,172.96,16.52170141]
[1748484122022,33.24060521,173.03,172.96,16.52170141]
[1748484122023,24.57171824,173.02,172.96,16.52170141]
[1748484122199,22.44377079,173.02,172.98,16.52170141]
[1748484122511,22.44377079,173.02,172.97,16.52170141]
[1748484123809,5.92206938,173.02,172.97,16.52170141]
[1748484123989,16.52170141,173.01,172.96,16.52170141]
[1748484124718,16.52170141,173.01,172.97,16.52170141]
[1748484124905,16.52170141,173.01,172.96,16.52170141]
[1748484125593,16.52170141,172.98,172.94,9.917824]
[1748484126600,5.78068096,172.99,172.94,9.917824]
[1748484126601,16.52170141,172.97,172.94,9.917824]
[1748484126821,16.52170141,172.96,172.94,9.917824]
[1748484127497,16.52170141,172.97,172.94,9.917824]
[1748484127825,22.4455466,172.96,172.94,9.917824]
[1748484129911,5.92384519,172.96,172.94,9.917824]
[1748484130223,22.4455466,172.96,172.94,9.917824]
[1748484131038,22.4455466,172.96,172.94,0.057824]
[1748484131039,35.31351184,172.95,172.94,0.057824]
[1748484132821,67.23769133,172.95,172.94,0.057824]
[1748484133029,73.59859133,172.95,172.94,0.057824]
[1748484133925,75.17449133,172.95,172.94,0.057824]
[1748484139706,18.64964886,172.91,172.85,83.2]
[1748484139902,0.14216157,172.85,172.81,1.604]
[1748484140106,0.14216157,172.85,172.81,11.444]
[1748484140306,16.66386298,172.85,172.81,11.444]
[1748484140611,16.66386298,172.85,172.81,27.96570141]
[1748484140925,22.44924581,172.85,172.81,27.96570141]
[1748484141722,5.9275444,172.85,172.81,27.96570141]
[1748484143522,0.14216157,172.85,172.81,27.96570141]
[1748484144325,16.80602455,172.87,172.82,16.52170141]
[1748484144507,22.59076406,172.87,172.82,16.52170141]
[1748484144701,16.52170141,172.85,172.81,11.444]
[1748484145305,22.30717734,172.85,172.81,27.96570141]
[1748484146122,16.52170141,172.84,172.81,9.84]
[1748484146306,16.52170141,172.83,172.81,9.84]
[1748484146634,16.66386298,172.84,172.81,9.84]
[1748484147309,5.78603251,172.83,172.81,9.84]
[1748484152114,6.07010755,172.84,172.81,9.84]
[1748484152620,22.59180896,172.84,172.81,9.84]
[1748484153725,16.52170141,172.83,172.81,9.84]
[1748484155037,22.59180896,172.84,172.81,9.84]
[1748484155637,6.07010755,172.84,172.81,9.84]
[1748484156243,16.52170141,172.85,172.81,9.84]
[1748484156534,0.14216157,172.86,172.81,9.84]
[1748484156751,16.52170141,172.85,172.81,9.84]
[1748484157255,22.30717337,172.85,172.81,9.84]
[1748484157414,16.66386298,172.84,172.81,9.84]
[1748484158616,5.78603251,172.83,172.81,9.84]
[1748484160135,22.30773392,172.83,172.81,9.84]
[1748484160521,35.45567341,172.82,172.81,9.84]
[1748484160968,35.45567341,172.82,172.76,26.36170141]
[1748484161122,35.45567341,172.82,172.78,16.52170141]
[1748484161123,0.14216157,172.82,172.78,16.52170141]
[1748484161519,22.30773392,172.83,172.78,16.52170141]
[1748484161735,22.30773392,172.83,172.79,16.52170141]
[1748484161736,5.78603251,172.83,172.79,16.52170141]
[1748484161959,0.14216157,172.83,172.79,16.52170141]
[1748484162265,0.14216157,172.83,172.8,16.52170141]
[1748484162627,22.30714379,172.85,172.8,16.52170141]
[1748484162954,5.78544238,172.85,172.81,16.52170141]
[1748484163118,0.14216157,172.85,172.82,16.52170141]
[1748484164155,5.92753127,172.85,172.82,16.52170141]
[1748484164352,5.78505538,172.86,172.82,16.52170141]
[1748484164648,5.78442453,172.88,172.84,16.52170141]
[1748484164953,0.14216157,172.87,172.84,16.52170141]
[1748484167248,5.78469503,172.87,172.83,26.36170141]
[1748484168051,22.30639644,172.87,172.83,9.84]
[1748484168767,5.78469503,172.87,172.83,26.36170141]
[1748484169944,5.78469503,172.87,172.83,9.84]
[1748484170145,5.78469503,172.87,172.83,26.36170141]
[1748484170541,16.52170141,172.87,172.83,9.84]
[1748484172847,5.92711739,172.87,172.83,26.36170141]
[1748484175363,5.92711739,172.87,172.83,9.84]
[1748484175551,5.92711739,172.87,172.83,26.36170141]
[1748484177466,5.92711739,172.87,172.83,9.84]
[1748484177772,22.4488188,172.87,172.83,9.84]
[1748484180673,22.4488188,172.87,172.83,26.36170141]
[1748484181471,5.86926543,172.87,172.83,26.36170141]
[1748484182678,22.39096684,172.87,172.83,26.36170141]
[1748484182846,22.39096684,172.87,172.83,16.52170141]
[1748484183869,0.14216157,172.85,172.82,16.52170141]
[1748484184052,0.14216157,172.83,172.81,9.84]
[1748484184455,0.14216157,172.83,172.81,26.36170141]
[1748484185375,0.14216157,172.84,172.81,26.36170141]
[1748484186647,5.78536303,172.85,172.82,16.52170141]
[1748484187083,5.78536303,172.85,172.81,9.84]
[1748484187084,5.78509109,172.86,172.83,16.52170141]
[1748484187376,5.92685527,172.87,172.83,16.52170141]
[1748484189385,5.92685527,172.87,172.81,52.1466961]
[1748484189604,5.92685527,172.87,172.83,16.52170141]
[1748484192881,5.92685527,172.87,172.84,16.52170141]
[1748484194504,5.92685527,172.87,172.85,16.52170141]
[1748484194869,5.92685527,172.87,172.84,16.52170141]
[1748484199298,18.933972,172.89,172.85,16.52170141]
[1748484199776,5.7833555,172.91,172.86,16.52170141]
[1748484199978,5.78402452,172.89,172.86,10.59258659]
[1748484200994,5.78378014,172.9,172.86,10.59258659]
[1748484202003,5.78378014,172.9,172.86,16.55076819]
[1748484204574,5.78378014,172.9,172.84,9.82]
[1748484204575,18.933972,172.89,172.84,9.82]
[1748484204779,0.14216157,172.87,172.84,26.37076819]
[1748484205480,5.78502834,172.86,172.84,26.37076819]
[1748484206587,5.78502834,172.86,172.84,9.82]
[1748484206887,5.78502834,172.86,172.84,26.37076819]
[1748484207306,5.78502834,172.86,172.84,9.82]
[1748484207504,5.78502834,172.86,172.84,26.37076819]
[1748484207712,5.78502834,172.86,172.84,9.82]
[1748484207879,5.78502834,172.86,172.83,16.55076819]
[1748484208916,0.14216157,172.85,172.81,9.82]
[1748484209211,0.14216157,172.83,172.81,9.82]
[1748484210182,0.14216157,172.83,172.76,9.82]
[1748484210183,22.3371355,172.82,172.76,9.82]
[1748484210431,0.14216157,172.81,172.77,16.55076819]
[1748484210602,0.14216157,172.81,172.78,16.55076819]
[1748484210906,0.14216157,172.81,172.79,16.55076819]
[1748484212311,18.933972,172.83,172.8,16.55076819]
[1748484212610,5.78569775,172.84,172.8,16.55076819]
[1748484213890,22.33646594,172.84,172.8,16.55076819]
[1748484214091,35.48474019,172.83,172.78,16.55076819]
[1748484214390,16.55076819,172.82,172.78,16.55076819]
[1748484215306,0.14216157,172.81,172.76,9.82]
[1748484215514,0.14216157,172.81,172.77,16.55076819]
[1748484216016,5.92911463,172.81,172.77,16.55076819]
[1748484217715,22.47988282,172.81,172.77,16.55076819]
[1748484218214,0.14216157,172.79,172.76,9.82]
[1748484218585,16.69292976,172.79,172.76,9.82]
[1748484219708,0.14216157,172.79,172.76,9.82]
[1748484220122,5.78770691,172.78,172.76,9.82]
[1748484223216,0.14216157,172.77,172.76,9.82]
[1748484225113,5.93020347,172.77,172.76,9.82]
[1748484225623,5.78752485,172.79,172.76,9.82]
[1748484225793,0.14216157,172.78,172.76,9.82]
[1748484227004,0.14216157,172.78,172.76,26.37076819]
[1748484227207,35.34257862,172.8,172.76,26.37076819]
[1748484227609,0.14216157,172.79,172.76,26.37076819]
[1748484228313,5.92955243,172.79,172.76,26.37076819]
[1748484229707,5.92955243,172.79,172.76,9.82]
[1748484230724,22.33791226,172.8,172.76,26.37076819]
[1748484231608,5.78714407,172.8,172.76,26.37076819]
[1748484232825,24.72039867,172.82,172.77,16.55076819]
[1748484233025,24.72039867,172.82,172.78,16.55076819]
[1748484233439,41.27116686,172.82,172.78,16.55076819]
[1748484241530,41.27116686,172.82,172.76,46.3]
[1748484241849,16.55076819,172.79,172.76,9.82]
[1748484242058,10.60698831,172.79,172.76,9.82]
[1748484243530,36.74914988,172.8,172.76,9.82]
[1748484243951,5.78737195,172.79,172.76,9.82]
[1748484244361,48.50163388,172.8,172.76,26.39232206]
[1748484244679,31.92931182,172.8,172.76,26.39232206]
[1748484244860,26.14216157,172.8,172.76,26.39232206]
[1748484245431,31.92921275,172.8,172.76,26.39232206]
[1748484247345,31.92921275,172.8,172.77,16.57232206]
[1748484248258,5.92921275,172.8,172.77,16.57232206]
[1748484248438,5.92921275,172.8,172.76,9.82]
[1748484248642,22.50153481,172.8,172.76,9.82]
[1748484250766,22.50153481,172.8,172.76,26.39232206]
[1748484252066,22.50153481,172.8,172.76,9.82]
[1748484252245,22.50153481,172.8,172.71,44.13822206]
[1748484252246,16.57232206,172.77,172.71,9.78]
[1748484252560,0.14216157,172.74,172.71,26.35232206]
[1748484253563,0.14216157,172.74,172.72,16.57232206]
[1748484253862,0.14216157,172.75,172.72,16.57232206]
[1748484254464,0.14216157,172.75,172.71,9.78]
[1748484254678,0.14216157,172.75,172.71,26.35232206]
[1748484255345,0.14216157,172.75,172.72,16.57232206]
[1748484256253,0.14216157,172.75,172.71,9.78]
[1748484256254,6.07323466,172.75,172.71,9.78]
[1748484256452,0.14216157,172.73,172.71,9.78]
[1748484256859,0.14216157,172.73,172.71,26.35232206]
[1748484258465,0.14216157,172.73,172.71,9.78]
[1748484258863,0.14216157,172.73,172.71,26.35232206]
[1748484264862,5.93163741,172.73,172.71,9.78]
[1748484268258,0.14216157,172.73,172.71,20.39198108]
[1748484272271,0.14216157,172.73,172.71,9.78]
[1748484272472,5.78943641,172.73,172.71,9.78]
[1748484273086,0.14216157,172.72,172.71,9.78]
[1748484274276,5.93187903,172.72,172.71,9.78]
[1748484275679,5.93187903,172.72,172.69,10.61198108]
[1748484278496,0.14216157,172.72,172.69,10.61198108]
[1748484278687,5.78911711,172.74,172.71,10.61198108]
[1748484280880,5.78911711,172.74,172.7,20.41198108]
[1748484281278,5.78911711,172.74,172.71,10.61198108]
[1748484281496,0.14216157,172.73,172.7,9.8]
[1748484281683,10.89630422,172.73,172.7,9.8]
[1748484284382,5.78971746,172.72,172.7,9.8]
[1748484284581,0.14216157,172.71,172.7,9.8]
[1748484286409,5.93221425,172.71,172.7,9.8]
[1748484288295,0.14216157,172.71,172.7,9.8]
[1748484290907,5.78871201,172.75,172.7,20.41198108]
[1748484291110,5.78871201,172.75,172.72,10.61198108]
[1748484291296,0.14216157,172.74,172.71,10.61198108]
[1748484291506,0.14216157,172.74,172.7,9.8]
[1748484291685,5.78938227,172.73,172.71,10.61198108]
[1748484297405,5.78938227,172.73,172.7,20.41198108]
[1748484297605,5.78938227,172.73,172.7,9.8]
[1748484297805,5.78938227,172.73,172.7,20.41198108]
[1748484298399,5.78938227,172.73,172.7,10.61198108]
[1748484299822,5.78938227,172.73,172.71,10.61198108]
[1748484300714,5.93128103,172.74,172.72,10.61198108]
[1748484301923,5.93128103,172.74,172.71,10.61198108]
[1748484303489,5.93128103,172.74,172.7,20.39198108]
[1748484305915,5.93128103,172.74,172.7,10.61198108]
[1748484306507,5.93128103,172.74,172.71,10.61198108]
[1748484307521,5.93128103,172.74,172.7,10.61198108]
[1748484307832,0.14216157,172.72,172.7,10.61198108]
[1748484308915,5.79005268,172.71,172.69,20.39198108]
[1748484309699,5.79005268,172.71,172.69,9.78]
[1748484310512,0.14216157,172.7,172.69,9.78]
[1748484310890,24.72435995,172.7,172.69,9.78]
[1748484313492,18.79181043,172.69,172.63,9.74]
[1748484313816,0.14216157,172.68,172.64,10.61198108]
[1748484314006,0.14216157,172.68,172.63,20.35198108]
[1748484314007,10.75414265,172.68,172.63,20.35198108]
[1748484315694,5.79139398,172.67,172.63,20.35198108]
[1748484317022,5.79139398,172.67,172.64,10.61198108]
[1748484320932,5.93332715,172.68,172.64,10.61198108]
[1748484322830,5.93332715,172.68,172.65,10.61198108]
[1748484324723,18.933972,172.72,172.67,10.61198108]
[1748484324901,29.54595308,172.72,172.68,10.61198108]
[1748484325099,0.14216157,172.7,172.64,1.5123]
[1748484325304,0.14216157,172.7,172.66,10.61198108]
[1748484325613,10.89630422,172.7,172.64,1.5123]
[1748484325817,10.75414265,172.68,172.63,20.35198108]
[1748484326022,10.61198108,172.67,172.63,20.35198108]
[1748484326224,10.89630422,172.68,172.63,20.35198108]
[1748484326614,5.79139398,172.67,172.63,20.35198108]
[1748484326813,0.14216157,172.66,172.63,20.35198108]
[1748484327212,0.14216157,172.66,172.64,10.61198108]
[1748484327533,5.79139398,172.67,172.64,10.61198108]
[1748484335120,0.28432314,172.66,172.62,10.61198108]
[1748484336113,0.14216157,172.66,172.63,10.61198108]
[1748484336535,5.79139398,172.67,172.63,10.61198108]
[1748484339540,5.79206487,172.65,172.63,10.61198108]
[1748484340245,5.79206487,172.65,172.61,9.76]
[1748484340545,5.79206487,172.65,172.62,10.61198108]
[1748484340749,5.79206487,172.65,172.61,9.76]
[1748484340912,0.14216157,172.64,172.61,20.37198108]
[1748484341117,0.14216157,172.64,172.61,9.76]
[1748484341315,0.28432314,172.64,172.61,9.76]
[1748484341618,5.7927359,172.63,172.61,9.76]
[1748484342050,0.14216157,172.62,172.61,9.76]
[1748484344027,5.93523305,172.62,172.61,9.76]
[1748484345249,0.14216157,172.62,172.61,9.76]
[1748484345853,5.93523305,172.62,172.61,9.76]
[1748484346925,5.93523305,172.62,172.5,148.4]
[1748484346926,18.933972,172.61,172.45,149.9071]
[1748484347124,10.61198108,172.55,172.45,11.2271]
[1748484347320,10.61198108,172.55,172.5,10.61198108]
[1748484347321,0.14216157,172.54,172.5,10.61198108]
[1748484347829,0.14216157,172.56,172.52,10.61198108]
[1748484348136,6.07970305,172.56,172.52,20.33198108]
[1748484348340,6.07970305,172.56,172.52,9.72]
[1748484348545,16.69168413,172.56,172.52,9.72]
[1748484349819,10.61198108,172.55,172.52,9.72]
[1748484350051,13.29581399,172.55,172.52,9.72]
[1748484350226,19.09125424,172.55,172.52,9.72]
[1748484350648,6.85512314,172.52,172.41,13.29581399]
[1748484350823,6.85512314,172.52,172.37,30.0251575]
[1748484350824,13.29581399,172.46,172.37,30.0251575]
[1748484351034,13.29581399,172.47,172.42,13.29581399]
[1748484351532,13.29581399,172.47,172.43,9.72]
[1748484351755,13.29581399,172.44,172.43,9.72]
[1748484352049,13.43797556,172.44,172.43,9.72]
[1748484352625,13.43797556,172.44,172.38,31.80112888]
[1748484352945,13.29581399,172.43,172.39,23.03581399]
[1748484353355,5.94141754,172.44,172.39,9.74]
[1748484353356,13.29581399,172.42,172.39,9.74]
[1748484353570,13.43797556,172.43,172.39,9.74]
[1748484353742,0.14216157,172.43,172.39,9.74]
[1748484353946,0.14216157,172.43,172.39,23.03581399]
[1748484354246,13.43797556,172.43,172.39,9.74]
[1748484354573,0.14216157,172.43,172.39,23.03581399]
[1748484354870,0.14216157,172.43,172.4,13.29581399]
[1748484355240,0.14216157,172.43,172.39,23.03581399]
[1748484355768,13.29581399,172.44,172.4,13.29581399]
[1748484355939,13.58013713,172.45,172.4,13.29581399]
[1748484356947,19.37894229,172.45,172.4,13.29581399]
[1748484357367,6.0831283,172.45,172.39,23.03581399]
[1748484357543,13.29581399,172.44,172.39,23.03581399]
[1748484358275,13.29581399,172.44,172.4,13.29581399]
[1748484358565,13.43797556,172.43,172.39,9.74]
[1748484359572,13.43797556,172.43,172.39,23.03581399]
[1748484360367,0.28432314,172.43,172.39,23.03581399]
[1748484360747,0.28432314,172.43,172.39,9.74]
[1748484360748,19.37990374,172.43,172.39,9.74]
[1748484361171,0.14216157,172.43,172.39,23.03581399]
[1748484361351,0.14216157,172.43,172.4,13.29581399]
[1748484363174,5.94170991,172.43,172.39,9.74]
[1748484363360,5.94170991,172.43,172.4,13.29581399]
[1748484363560,19.2375239,172.43,172.39,9.74]
[1748484363884,13.29581399,172.42,172.39,9.74]
[1748484364172,19.2375239,172.43,172.39,9.74]
[1748484364483,19.2375239,172.43,172.39,23.03581399]
[1748484365273,0.14216157,172.41,172.39,9.74]
[1748484366158,37.74458952,172.44,172.39,23.03581399]
[1748484366373,0.28432314,172.43,172.4,13.29581399]
[1748484366580,0.28432314,172.43,172.39,23.03581399]
[1748484367780,6.08387021,172.43,172.39,23.03581399]
[1748484369187,6.08387021,172.43,172.39,9.74]
[1748484369481,19.3796842,172.43,172.39,9.74]
[1748484369786,19.3796842,172.43,172.39,23.03581399]
[1748484370076,6.08387021,172.43,172.39,23.03581399]
[1748484370379,19.3796842,172.43,172.39,23.03581399]
[1748484372085,13.58013713,172.4,172.39,9.74]
[1748484372451,0.28432314,172.4,172.39,9.74]
[1748484372655,0.28432314,172.4,172.39,23.03581399]
[1748484372977,0.28432314,172.4,172.39,9.74]
[1748484373281,0.14216157,172.4,172.39,9.74]
[1748484376584,5.9426256,172.4,172.39,9.74]
[1748484377684,0.14216157,172.4,172.39,9.74]
[1748484378383,5.9426256,172.4,172.39,9.74]
[1748484380088,0.14216157,172.4,172.39,9.74]
[1748484382571,5.9426256,172.4,172.39,9.74]
[1748484383459,0.14216157,172.4,172.39,9.74]
[1748484390070,5.9426256,172.4,172.39,9.74]
[1748484391382,0.14216157,172.4,172.39,9.74]
[1748484393095,5.9426256,172.4,172.39,9.74]